bitfinex/quotes_ETHUSD_20240811
["timestamp","ask_amount","ask_price","bid_price","bid_amount"]
[1723418094221,2.73507,2559.4,2558.9,2.7355]
[1723418094382,7.27,2559.5,2558.9,2.7355]
[1723418094714,7.27,2559.5,2559.0,3.28536]
[1723418095485,10.00491,2559.5,2559.0,0.55]
[1723418095827,7.27,2559.5,2559.0,3.28543]
[1723418096193,7.27,2559.5,2559.0,0.55]
[1723418096384,10.00494,2559.5,2559.0,3.28544]
[1723418096825,2.73503,2559.4,2559.0,0.55]
[1723418097498,2.73524,2559.2,2558.7,2.7357]
[1723418099623,22.19364703,2559.3,2558.8,2.73564]
[1723418100524,24.92877703,2559.3,2558.8,2.73564]
[1723418100931,24.92877703,2559.3,2558.7,2.7357]
[1723418101136,24.92877703,2559.3,2558.8,0.55]
[1723418101430,2.7355,2559.0,2558.5,8.0491]
[1723418101597,2.7663847,2559.2,2558.6,0.55]
[1723418101809,19.85594703,2559.3,2558.9,2.73547]
[1723418102106,19.85594703,2559.3,2559.0,0.55]
[1723418102295,0.04329833,2559.2,2559.0,3.28536]
[1723418102813,0.04325393,2559.1,2559.0,0.55]
[1723418102983,19.85594703,2559.3,2559.0,0.55]
[1723418103525,0.04328486,2559.2,2559.0,0.55]
[1723418103928,19.85594703,2559.3,2559.0,3.28543]
[1723418104111,0.04324046,2559.1,2559.0,3.215347]
[1723418104419,0.0432837,2559.1,2559.0,5.950787]
[1723418104621,10.00491,2559.5,2559.0,5.950787]
[1723418104824,0.0432837,2559.1,2559.0,0.55]
[1723418104996,10.00491,2559.5,2559.0,3.28542]
[1723418105207,0.04329156,2559.1,2559.0,0.55]
[1723418105412,10.00497,2559.5,2559.0,0.55]
[1723418105611,0.04326688,2559.1,2559.0,0.55]
[1723418105790,10.00497,2559.5,2559.0,3.887535]
[1723418105986,0.04326688,2559.1,2559.0,3.28544]
[1723418106525,10.00497,2559.5,2559.0,3.28544]
[1723418106702,10.00497,2559.5,2559.0,0.55]
[1723418106703,0.04326688,2559.1,2559.0,0.55]
[1723418106904,10.00497,2559.5,2559.0,0.55]
[1723418107107,0.04326688,2559.1,2559.0,0.55]
[1723418107303,10.00498,2559.5,2559.0,0.55]
[1723418107819,0.04335968,2559.4,2559.0,0.55]
[1723418109499,0.04335968,2559.4,2559.0,3.28542]
[1723418110299,0.04335968,2559.4,2559.3,2.73512]
[1723418110837,3.75524082,2559.7,2559.3,0.787593]
[1723418111173,19.85594703,2560.0,2559.6,2.4104]
[1723418111296,3.75524082,2560.1,2559.6,5.14519]
[1723418111497,7.84165715,2560.1,2559.6,5.14519]
[1723418111733,3.75524082,2560.1,2559.8,2.73457]
[1723418111939,2.4562,2560.4,2559.7,0.07812924]
[1723418112149,5.1077721,2560.3,2560.1,2.73421]
[1723418112295,23.61122404,2560.5,2559.7,0.52233231]
[1723418112499,23.61122404,2560.5,2559.8,3.28458]
[1723418112500,2.73406,2560.3,2559.8,3.28458]
[1723418112694,2.7125947,2560.4,2559.9,5.46894]
[1723418112925,2.7125947,2560.4,2559.9,2.73447]
[1723418113147,2.316,2560.2,2559.4,2.73493]
[1723418113344,2.316,2560.2,2559.3,2.4306]
[1723418113345,2.73454,2559.9,2559.3,2.4306]
[1723418113642,2.73454,2559.9,2559.2,2.73513]
[1723418113643,2.73471,2559.7,2559.2,2.73513]
[1723418113800,2.73461,2559.8,2559.3,3.28512]
[1723418114119,3.6570527,2559.8,2559.3,3.28512]
[1723418114330,2.73472,2559.7,2559.3,0.55]
[1723418114558,2.73472,2559.7,2559.2,0.55]
[1723418115769,22.59064703,2559.7,2558.7,2.3729]
[1723418115969,5.47064,2559.2,2558.6,2.73581]
[1723418116133,2.73532,2559.2,2558.6,2.73581]
[1723418116731,2.73541,2559.1,2558.5,2.73593]
[1723418117177,0.04337024,2559.0,2558.5,2.73593]
[1723418117334,0.04337024,2559.0,2558.0,2.73643]
[1723418117335,2.73582,2558.7,2558.0,2.73643]
[1723418117535,2.73633,2558.2,2557.6,0.1241523]
[1723418117733,2.73651,2558.0,2557.6,0.1241523]
[1723418117938,2.77959378,2557.9,2557.6,0.1241523]
[1723418118178,2.7368,2557.8,2557.6,0.1241523]
[1723418118446,0.04282184,2557.7,2557.6,0.1241523]
[1723418118636,2.73683,2557.7,2557.6,0.1241523]
[1723418118837,3.284193,2557.7,2557.6,0.1241523]
[1723418119073,6.06339162,2557.7,2557.6,0.1241523]
[1723418119280,8.52939162,2557.7,2557.6,0.1241523]
[1723418120864,14.26622162,2557.7,2557.6,0.1241523]
[1723418122057,11.52939162,2557.7,2557.6,0.1241523]
[1723418122255,0.04236862,2557.7,2557.6,0.1241523]
[1723418122569,2.73683,2557.7,2557.6,0.1241523]
[1723418122746,2.77894804,2557.7,2557.6,0.1241523]
[1723418123273,0.04211804,2557.7,2557.6,0.1241523]
[1723418123475,2.73651,2558.0,2557.6,0.1241523]
[1723418123637,0.04133535,2557.7,2557.6,0.1241523]
[1723418123844,2.73651,2558.0,2557.6,0.1241523]
[1723418124101,0.04128218,2557.7,2557.6,2.8610923]
[1723418124379,0.04128218,2557.7,2557.6,0.6741523]
[1723418124549,2.73642,2558.1,2557.6,0.6741523]
[1723418124738,3.521228,2558.1,2557.6,0.6741523]
[1723418124939,0.04137508,2558.0,2557.6,0.6741523]
[1723418125876,2.73636,2558.2,2557.6,0.6741523]
[1723418126073,0.04134412,2557.9,2557.6,0.6741523]
[1723418126394,0.0414064,2557.8,2557.6,0.1241523]
[1723418126537,2.73683,2557.7,2557.6,0.1241523]
[1723418126740,0.04157615,2557.7,2557.6,0.1241523]
[1723418126938,2.73656,2558.0,2557.6,0.1241523]
[1723418127178,2.7368,2557.8,2557.6,0.1241523]
[1723418127477,0.04157615,2557.7,2557.6,0.1241523]
[1723418127845,2.73656,2558.0,2557.6,0.1241523]
[1723418128075,0.04157615,2557.7,2557.6,0.1241523]
[1723418128258,2.73641,2558.1,2557.6,0.1241523]
[1723418128455,0.04145641,2557.7,2557.6,6.11839053]
[1723418128773,19.85594703,2558.2,2557.9,2.73659]
[1723418128938,2.4908,2558.6,2557.8,2.7367]
[1723418129137,2.73988,2558.6,2557.9,0.55]
[1723418129362,2.7362,2558.3,2557.9,0.55]
[1723418129591,2.73617,2558.4,2557.8,3.28669]
[1723418129796,2.73591,2558.6,2557.8,3.28669]
[1723418130080,2.73591,2558.6,2557.9,0.33648768]
[1723418130282,2.73591,2558.6,2558.0,3.28644]
[1723418130457,2.7361,2558.4,2558.0,0.55]
[1723418132069,5.47185,2558.6,2558.0,0.55]
[1723418132270,9.7608,2558.9,2558.3,2.73611]
[1723418132591,12.28,2559.2,2558.0,2.73648]
[1723418132592,2.73594,2558.6,2558.0,2.73648]
[1723418132788,0.273594,2558.5,2558.0,2.73648]
[1723418132971,2.73594,2558.6,2558.0,5.47293]
[1723418133280,2.73578,2558.7,2558.1,0.55]
[1723418133799,7.27,2559.2,2558.1,0.55]
[1723418133800,7.27,2559.2,2558.4,2.2855]
[1723418133944,5.12744,2559.0,2558.1,0.55]
[1723418134147,2.73584,2558.7,2558.1,0.55]
[1723418134454,2.73555,2558.9,2558.3,5.4722]
[1723418134656,7.27,2559.5,2558.6,2.3935]
[1723418134841,7.27,2559.5,2558.9,2.73552]
[1723418134842,2.73491,2559.5,2558.9,2.73552]
[1723418135044,2.73491,2559.5,2559.0,3.28541]
[1723418135379,7.86152,2559.7,2559.0,0.55]
[1723418135584,0.786152,2559.7,2558.8,2.73562]
[1723418135789,0.786152,2559.7,2558.6,2.3935]
[1723418135790,2.73519,2559.3,2558.6,5.12928]
[1723418136094,2.73496,2559.5,2558.7,0.55]
[1723418136387,5.12666,2559.8,2559.2,2.73516]
[1723418136543,2.73478,2559.7,2559.0,5.47076]
[1723418136879,0.273478,2559.6,2558.8,2.73557]
[1723418137078,2.73501,2559.5,2558.9,3.0]
[1723418137378,2.73516,2559.3,2558.9,3.0]
[1723418137579,2.73516,2559.3,2558.7,0.55]
[1723418139078,2.73524,2559.2,2558.7,0.55]
[1723418139583,2.73516,2559.3,2558.7,0.55]
[1723418139750,5.358551,2559.5,2558.7,0.55]
[1723418139751,2.73495,2559.5,2558.7,0.55]
[1723418139951,2.73523,2559.2,2558.8,0.29435]
[1723418140154,2.73523,2559.2,2558.7,0.55]
[1723418140355,5.47056,2559.2,2558.7,0.55]
[1723418140542,0.07738146,2559.1,2558.7,0.55]
[1723418141904,0.07738146,2559.1,2558.9,2.73547]
[1723418142045,0.07738146,2559.1,2559.0,2.73544]
[1723418142246,2.73491,2559.5,2559.0,2.73544]
[1723418142479,0.077534,2559.1,2558.9,2.73552]
[1723418142647,2.73491,2559.5,2558.9,2.73552]
[1723418142848,0.07750462,2559.0,2558.8,5.47114]
[1723418143056,2.73503,2559.4,2558.9,3.28555]
[1723418143469,2.73486,2559.6,2559.0,2.73534]
[1723418143652,5.10953,2560.0,2559.4,2.73501]
[1723418143863,2.73454,2559.9,2559.5,0.273501]
[1723418144048,2.73397,2560.4,2559.6,3.2847]
[1723418144049,2.73421,2560.2,2559.6,3.2847]
[1723418144243,2.887,2561.0,2559.9,2.73445]
[1723418144244,2.4233,2560.6,2559.9,2.73445]
[1723418144450,2.4233,2560.6,2560.0,0.55]
[1723418144882,2.73386,2560.5,2560.0,0.55]
[1723418145097,2.73422,2560.2,2559.3,5.3158]
[1723418145297,2.73438,2560.0,2559.4,0.55]
[1723418145461,3.007948,2559.9,2559.4,3.28501]
[1723418145666,3.007948,2559.9,2559.4,0.55]
[1723418145667,2.73451,2559.9,2559.4,0.55]
[1723418145986,2.73492,2559.5,2559.0,2.3158]
[1723418146194,2.73507,2559.4,2558.8,2.73558]
[1723418146399,2.73492,2559.5,2558.8,2.73558]
[1723418146593,2.73492,2559.5,2558.8,3.240718]
[1723418146895,7.78091,2559.7,2559.0,2.73538]
[1723418147188,2.7348,2559.6,2559.0,2.73538]
[1723418147353,2.80751266,2559.6,2559.0,2.73538]
[1723418148693,2.73495,2559.5,2559.0,2.73538]
[1723418149058,0.07260273,2559.4,2559.0,2.73538]
[1723418149954,0.07260273,2559.4,2558.9,2.73554]
[1723418150179,2.80767273,2559.4,2559.0,0.55]
[1723418150395,0.07260273,2559.4,2558.9,0.55]
[1723418150554,0.07260273,2559.4,2558.9,3.28554]
[1723418150752,2.73518,2559.3,2558.9,0.55]
[1723418151098,0.0716724,2559.2,2558.8,3.28562]
[1723418151265,2.73496,2559.5,2559.0,2.73544]
[1723418151595,0.504636,2559.5,2559.0,2.73544]
[1723418151791,0.07173516,2559.4,2559.1,2.73531]
[1723418152017,2.73475,2559.7,2559.1,5.47058]
[1723418152220,0.07159151,2559.3,2559.1,5.47054]
[1723418152376,2.73488,2559.6,2558.9,2.73546]
[1723418152581,0.07165027,2559.5,2559.0,3.28537]
[1723418155785,2.80656027,2559.5,2559.0,0.55]
[1723418156021,2.80656027,2559.5,2558.7,5.0515]
[1723418156022,2.8454538,2559.5,2558.7,5.0515]
[1723418156223,2.73578,2558.7,2558.4,2.3801]
[1723418156385,5.13037,2559.2,2558.6,2.73577]
[1723418156579,0.07175419,2559.1,2558.6,2.73577]
[1723418157219,0.07175419,2559.1,2558.1,5.11648]
[1723418157220,0.07175419,2559.1,2558.9,2.73552]
[1723418157420,2.73502,2559.4,2558.7,2.4811]
[1723418157607,0.34507169,2559.3,2558.8,3.28559]
[1723418157920,5.47053,2559.2,2558.8,0.55]
[1723418158141,2.73534,2559.1,2558.7,0.55]
[1723418158299,2.80678031,2559.2,2558.5,2.7359]
[1723418158502,0.07141455,2559.0,2558.6,2.7358]
[1723418158701,0.52018803,2559.2,2558.4,2.4811]
[1723418158884,2.73579,2558.7,2558.2,5.73622]
[1723418159285,0.07139052,2558.6,2558.2,3.0]
[1723418159500,7.86546,2559.3,2558.5,5.00857]
[1723418159836,2.73542,2559.1,2558.5,5.00852]
[1723418160048,2.73542,2559.1,2558.6,0.55]
[1723418160216,0.07142141,2559.0,2558.6,3.28579]
[1723418160531,0.07142141,2559.0,2558.6,0.55]
[1723418160737,0.07142141,2559.0,2558.2,2.887]
[1723418160738,0.35210555,2559.0,2558.3,2.73612]
[1723418160944,2.73557,2558.9,2558.4,3.28605]
[1723418161111,2.73566,2558.8,2558.4,0.55]
[1723418161306,2.80695866,2558.8,2558.3,3.55]
[1723418161624,2.80695866,2558.8,2558.3,4.697333]
[1723418161825,2.80695866,2558.8,2558.3,7.433523]
[1723418162134,0.07129866,2558.8,2558.3,10.169643]
[1723418162333,0.07129866,2558.8,2558.4,2.73607]
[1723418162511,2.73556,2558.9,2558.3,7.433453]
[1723418162714,0.07126927,2558.7,2558.3,7.433453]
[1723418163033,2.80718987,2558.6,2558.3,0.55]
[1723418163332,2.80718987,2558.6,2557.9,5.20533]
[1723418163531,5.54311987,2558.6,2558.0,2.73649]
[1723418163731,2.73609,2558.4,2557.9,2.4688]
[1723418163937,2.73609,2558.4,2557.9,2.73661]
[1723418164134,2.73636,2558.2,2557.6,8.63181053]
[1723418164341,2.73636,2558.2,2557.6,0.1241523]
[1723418164548,2.73652,2558.0,2557.6,0.1241523]
[1723418164906,2.73683,2557.7,2557.6,0.1241523]
[1723418165159,0.78417062,2557.7,2557.6,0.1241523]
[1723418165310,0.0708786,2557.7,2557.6,0.1241523]
[1723418165510,5.03404,2557.8,2557.6,0.1241523]
[1723418165711,2.8077086,2557.7,2557.6,0.1241523]
[1723418166352,0.0708786,2557.7,2557.6,0.1241523]
[1723418166711,29.86211703,2558.4,2557.6,4.5319523]
[1723418166910,6.01785512,2558.8,2557.9,2.73656]
[1723418167137,2.73593,2558.6,2558.0,2.73651]
[1723418167342,2.73593,2558.6,2558.0,3.283817]
[1723418167524,2.73593,2558.6,2558.1,0.55]
[1723418167826,7.73034,2558.8,2558.1,0.55]
[1723418168030,2.73583,2558.7,2558.1,3.28634]
[1723418168560,6.07259792,2558.8,2558.3,2.73617]
[1723418168856,2.73584,2558.7,2558.2,2.73626]
[1723418169157,0.28069214,2559.0,2558.3,2.73612]
[1723418169458,2.73561,2558.9,2558.4,0.55]
[1723418169611,3.249201,2558.9,2558.4,0.55]
[1723418169819,2.73573,2558.8,2558.4,0.55]
[1723418170052,2.73573,2558.8,2558.3,0.55]
[1723418170952,2.73561,2558.9,2558.3,3.28617]
[1723418171156,5.13569,2559.1,2558.5,2.73597]
[1723418171367,5.13569,2559.1,2558.5,2.73591]
[1723418171723,2.4744,2559.4,2558.6,2.3393]
[1723418171917,2.73486,2559.6,2559.1,2.73533]
[1723418172121,2.73486,2559.6,2559.1,2.73532]
[1723418172432,2.73518,2559.3,2558.7,2.96961]
[1723418172633,2.73509,2559.4,2558.9,2.73548]
[1723418172817,2.4744,2559.7,2559.0,2.73538]
[1723418173020,2.4744,2560.0,2559.2,2.7352]
[1723418173223,2.73398,2560.4,2559.4,2.735]
[1723418173224,2.73449,2559.9,2559.4,2.735]
[1723418173442,2.73422,2560.2,2559.4,2.73494]
[1723418173654,2.73438,2560.0,2559.4,5.46987]
[1723418173965,2.73438,2560.0,2559.2,0.07814206]
[1723418173966,2.4041,2560.3,2559.8,2.73457]
[1723418174116,2.4041,2560.3,2559.6,2.73478]
[1723418174117,2.73408,2560.3,2559.6,7.81989]
[1723418174316,5.13788,2560.6,2559.7,0.07813012]
[1723418174580,2.73385,2560.5,2559.8,6.01904]
[1723418174784,0.787173,2560.4,2559.9,2.7344]
[1723418174973,7.87169,2560.6,2560.0,0.55]
[1723418175161,5.13788,2560.6,2560.0,3.28436]
[1723418175496,2.73358,2560.8,2560.2,2.73415]
[1723418175705,2.73358,2560.8,2560.3,0.55]
[1723418176045,2.73374,2560.6,2560.3,0.55]
[1723418176246,2.73365,2560.7,2560.1,3.28423]
[1723418176441,2.73373,2560.6,2560.1,0.55]
[1723418176783,2.73398,2560.4,2559.8,2.73455]
[1723418176989,2.7339,2560.5,2559.9,3.2844]
[1723418177143,2.73406,2560.3,2559.8,2.7345]
[1723418177342,0.0692505,2560.4,2559.8,2.7345]
[1723418177543,0.06919179,2560.2,2559.6,2.3504]
[1723418177745,0.06922114,2560.3,2559.9,2.7344]
[1723418177953,0.06916243,2560.1,2560.0,0.55]
[1723418178186,2.73397,2560.4,2560.0,0.55]
[1723418178351,2.7339,2560.5,2559.9,3.28441]
[1723418178550,0.06922114,2560.3,2559.9,3.9726491]
[1723418178748,2.7339,2560.5,2559.9,3.9726491]
[1723418178749,0.0692505,2560.4,2560.3,2.73405]
[1723418179082,2.73347,2560.9,2560.3,0.55]
[1723418179244,2.73347,2560.9,2560.4,0.55]
[1723418179446,2.73326,2561.1,2560.4,0.55]
[1723418179447,2.73326,2561.1,2560.5,2.73383]
[1723418179795,2.73326,2561.1,2560.4,3.36198778]
[1723418179796,2.73303,2561.3,2560.7,2.73361]
[1723418180081,5.4661,2561.3,2560.6,2.73365]
[1723418180260,2.73309,2561.2,2560.6,5.46732]
[1723418180457,2.2506,2561.5,2560.6,5.46732]
[1723418180458,2.2506,2561.5,2560.6,2.363]
[1723418180659,5.4657,2561.5,2560.8,5.46688]
[1723418180854,0.54657,2561.5,2561.0,5.46649]
[1723418181043,2.7326,2561.7,2561.1,3.28317]
[1723418181244,2.7326,2561.7,2561.1,3.28312]
[1723418181245,2.73258,2561.7,2561.1,3.28312]
[1723418181451,2.73258,2561.7,2561.1,0.55]
[1723418181681,2.73313,2561.2,2560.6,2.363]
[1723418181885,2.73363,2560.7,2560.4,0.3917]
[1723418182091,2.73363,2560.7,2560.0,5.09734]
[1723418182399,2.73392,2560.5,2560.0,2.363]
[1723418182693,2.73392,2560.5,2559.8,2.73451]
[1723418182890,2.73363,2560.7,2560.0,2.73429]
[1723418182891,2.73379,2560.6,2560.0,2.73429]
[1723418183097,2.73412,2560.3,2559.7,2.73468]
[1723418183400,2.7342,2560.2,2559.4,2.73496]
[1723418183567,2.7342,2560.2,2559.3,6.2629]
[1723418183568,2.73448,2559.9,2559.3,2.4189]
[1723418183771,2.73436,2560.1,2559.5,2.73482]
[1723418183956,2.7345,2559.9,2559.3,2.4189]
[1723418184151,2.73437,2560.0,2559.3,2.4189]
[1723418184379,0.3007782,2560.0,2559.0,2.4189]
[1723418184610,3.75570912,2561.0,2559.0,2.4189]
[1723418184611,2.73349,2560.9,2560.1,2.73424]
[1723418184757,0.273349,2560.8,2560.1,2.73424]
[1723418185097,2.73362,2560.7,2560.1,2.73424]
[1723418185826,2.73362,2560.7,2560.1,2.73419]
[1723418186004,5.46698,2560.9,2560.3,2.73397]
[1723418186161,2.73327,2561.1,2560.5,2.73382]
[1723418187300,2.3045,2561.4,2560.3,2.356]
[1723418187509,2.73364,2560.7,2560.4,0.55]
[1723418188003,2.73341,2560.9,2560.2,0.55]
[1723418188187,2.73341,2560.9,2559.7,6.57865]
[1723418188188,2.356,2560.7,2559.7,5.05595]
[1723418188351,2.73439,2560.0,2559.4,2.3213]
[1723418188689,2.73423,2560.2,2559.5,2.73484]
[1723418188874,2.73427,2560.1,2559.5,2.73484]
[1723418189076,2.73423,2560.2,2559.5,2.73484]
[1723418189283,2.73423,2560.2,2559.5,2.73483]
[1723418189617,2.73423,2560.2,2559.6,2.73478]
[1723418189822,2.73423,2560.2,2559.5,2.73483]
[1723418189986,22.58981703,2560.5,2559.6,0.55]
[1723418190176,2.7345,2559.9,2559.6,0.55]
[1723418190380,2.7345,2559.9,2559.5,0.55]
[1723418192382,2.73472,2559.7,2559.1,8.05658]
[1723418192579,0.06845049,2559.8,2559.2,0.55]
[1723418192927,2.3552417,2560.4,2559.5,2.73487]
[1723418192928,0.06840834,2559.7,2559.5,2.73487]
[1723418193085,5.46847,2560.2,2559.6,0.55]
[1723418193286,2.73423,2560.2,2559.6,3.28475]
[1723418193484,5.46849,2560.2,2559.6,3.28475]
[1723418193707,2.73423,2560.2,2559.6,3.28475]
[1723418194192,19.85594703,2560.3,2559.6,3.69819575]
[1723418194406,2.73427,2560.1,2559.6,6.354852]
[1723418194796,5.46846,2560.2,2559.6,1.151962]
[1723418194997,5.46846,2560.2,2559.7,0.3886792]
[1723418195323,2.73427,2560.1,2559.7,0.3886792]
[1723418196285,2.73422,2560.2,2559.7,0.3886792]
[1723418196735,2.73422,2560.2,2559.7,3.1232992]
[1723418196886,19.85594703,2560.3,2559.9,2.73442]
[1723418197112,19.85594703,2560.3,2560.0,0.55]
[1723418197440,2.73433,2560.1,2559.7,0.3886792]
[1723418197652,2.73443,2560.0,2559.5,5.23168]
[1723418197805,2.73448,2559.9,2559.6,0.55]
[1723418198000,2.73433,2560.1,2559.6,0.55]
[1723418198216,2.73411,2560.3,2559.7,2.4968]
[1723418198506,2.73427,2560.1,2559.8,0.30468]
[1723418198735,2.73416,2560.2,2559.8,0.30468]
[1723418198938,2.25,2560.4,2559.2,2.4968]
[1723418199141,2.73475,2559.7,2559.2,2.4968]
[1723418199345,2.73475,2559.7,2558.2,2.73627]
[1723418199346,2.73486,2559.6,2559.0,2.73537]
[1723418199641,2.73486,2559.6,2559.1,0.273537]
[1723418199947,2.73491,2559.5,2559.1,0.273537]
[1723418200101,5.46952,2559.7,2559.1,0.273537]
[1723418200302,2.73475,2559.7,2559.1,0.273537]
[1723418200539,2.73475,2559.7,2559.2,0.55]
[1723418201046,2.7349,2559.5,2559.2,0.55]
[1723418201343,2.73471,2559.7,2559.2,0.55]
[1723418202315,2.73471,2559.7,2559.2,1.4055047]
[1723418204124,13.76066103,2560.1,2559.3,2.2687]
[1723418204326,2.73432,2560.1,2559.6,2.73472]
[1723418204654,2.73428,2560.1,2559.7,0.55]
[1723418204861,2.73428,2560.1,2559.6,0.32848]
[1723418205029,2.73453,2559.9,2559.3,5.00376]
[1723418205212,2.73453,2559.9,2559.5,2.3627]
[1723418205562,2.73429,2560.1,2559.7,2.3627]
[1723418206134,2.73412,2560.3,2559.7,2.3627]
[1723418206340,2.73412,2560.3,2559.8,0.564744]
[1723418206854,2.73412,2560.3,2559.8,3.299314]
[1723418207011,2.73412,2560.3,2559.8,0.564744]
[1723418207218,2.73419,2560.2,2559.8,0.564744]
[1723418207417,2.8022115,2560.2,2559.8,0.564744]
[1723418207727,0.0680215,2560.2,2559.7,2.3627]
[1723418207930,2.73447,2560.0,2559.6,0.55]
[1723418208168,2.73454,2559.9,2559.6,0.55]
[1723418208403,2.80244146,2559.9,2559.6,0.55]
[1723418209155,0.06790146,2559.9,2559.6,0.55]
[1723418209455,2.73431,2560.1,2559.6,1.114759]
[1723418209662,0.0678721,2559.8,2559.6,1.114759]
[1723418209861,0.06783692,2559.7,2559.6,1.114759]
[1723418210065,22.59005703,2560.3,2559.7,2.73465]
[1723418210271,22.59005703,2560.3,2559.8,0.3849409]
[1723418210426,2.73427,2560.1,2559.6,1.114759]
[1723418210626,0.06792443,2560.0,2559.7,5.16387]
[1723418210827,2.7341,2560.3,2559.8,0.55]
[1723418211064,0.06810603,2560.2,2559.8,0.55]
[1723418211226,2.73399,2560.4,2559.9,0.571387]
[1723418211429,0.0681226,2560.3,2560.0,2.7343]
[1723418211653,6.48946139,2560.6,2560.1,0.55]
[1723418211654,6.48945139,2560.6,2560.1,0.55]
[1723418211856,2.73411,2560.3,2560.1,0.55]
[1723418212172,0.06816235,2560.2,2559.7,2.4292]
[1723418212349,0.06816235,2560.2,2559.3,2.73506]
[1723418212350,2.73447,2560.0,2559.4,8.01325]
[1723418212554,2.73443,2560.0,2559.5,1.624831]
[1723418212726,0.06813727,2559.9,2559.5,1.624831]
[1723418213325,0.06813727,2559.9,2559.5,4.359721]
[1723418213526,0.06813727,2559.9,2559.6,0.9638021]
[1723418214725,0.06813727,2559.9,2559.5,1.624831]
[1723418214726,2.73459,2559.8,2559.5,0.55]
[1723418214932,2.80264277,2559.8,2559.5,0.55]
[1723418215252,2.80264277,2559.8,2559.4,0.55]
[1723418215458,2.80264277,2559.8,2559.4,1.42451]
[1723418215833,2.73503,2559.4,2558.8,2.73564]
[1723418216156,2.73503,2559.4,2558.6,2.3819]
[1723418216157,5.47082,2559.1,2558.6,2.3819]
[1723418216367,2.73562,2558.9,2558.6,2.3819]
[1723418216539,2.73561,2558.9,2558.4,2.3819]
[1723418216731,0.06771616,2558.8,2558.4,2.893703]
[1723418217639,0.06771616,2558.8,2558.5,2.73597]
[1723418217841,2.73539,2559.1,2558.5,5.47188]
[1723418218059,2.73539,2559.1,2558.5,2.73591]
[1723418218246,0.06743613,2559.0,2558.5,2.73591]
[1723418218576,0.06743613,2559.0,2558.9,2.3819]
[1723418218729,19.85594703,2559.2,2558.9,2.9319]
[1723418219070,0.06729427,2559.0,2558.9,0.55]
[1723418219243,2.73545,2559.0,2558.6,2.3819]
[1723418219442,2.73562,2558.9,2558.3,5.1189]
[1723418219761,0.06723945,2558.8,2558.7,0.55]
[1723418221042,2.7355,2559.0,2558.6,0.55]
[1723418221247,2.80063334,2558.8,2558.3,2.3828]
[1723418221448,2.80063334,2558.8,2558.4,0.55]
[1723418221449,5.53635334,2558.8,2558.4,0.55]
[1723418221658,2.80060334,2558.8,2558.4,0.55]
[1723418221863,2.7359,2558.6,2558.4,0.55]
[1723418222171,0.06479517,2558.5,2558.2,0.55]
[1723418222375,2.73572,2558.8,2558.2,1.418732]
[1723418222669,0.06471838,2558.4,2558.3,2.73619]
[1723418222878,2.73529,2559.2,2558.5,5.04057]
[1723418223040,2.73529,2559.2,2558.6,0.62816755]
[1723418223366,19.85594703,2559.3,2558.7,2.73568]
[1723418223611,19.85594703,2559.3,2558.8,3.28559]
[1723418223778,19.85594703,2559.3,2558.8,1.15994376]
[1723418223779,2.73524,2559.2,2558.8,1.15994376]
[1723418223974,19.85594703,2559.3,2558.8,1.15994376]
[1723418224173,19.85594703,2559.3,2559.0,5.04002]
[1723418224391,6.49160808,2559.8,2559.1,3.28531]
[1723418224702,2.73463,2559.8,2559.2,0.07814492]
[1723418224905,2.73448,2559.9,2559.3,0.55]
[1723418225111,2.73433,2560.1,2559.5,2.7349]
[1723418225401,2.4211,2560.2,2559.5,2.7349]
[1723418225402,2.73465,2559.8,2559.5,2.3046]
[1723418225714,2.73431,2560.1,2559.5,2.62369265]
[1723418225910,2.73455,2559.9,2559.5,2.62369265]
[1723418226068,2.73431,2560.1,2559.5,2.62369265]
[1723418226570,3.75674514,2560.4,2559.7,2.73469]
[1723418226797,5.15499,2560.5,2559.7,2.73469]
[1723418226798,5.15499,2560.5,2559.8,0.41440514]
[1723418227007,2.73401,2560.4,2559.9,0.55]
[1723418227256,5.46783,2560.5,2559.9,1.19335351]
[1723418227379,3.75674514,2560.7,2559.9,1.19335351]
[1723418227380,6.49042514,2560.7,2560.0,0.07812253]
[1723418227567,2.73374,2560.6,2560.1,2.8546]
[1723418227768,2.73391,2560.5,2560.1,2.8546]
[1723418228303,2.73413,2560.3,2559.8,2.3046]
[1723418228475,2.7339,2560.5,2559.8,2.3046]
[1723418228783,2.7339,2560.5,2559.8,5.11724145]
[1723418228980,0.37553498,2560.8,2559.9,2.73444]
[1723418229297,6.48880984,2560.9,2560.1,2.73418]
[1723418229501,2.4211,2561.0,2560.2,0.55]
[1723418229502,2.73369,2560.7,2560.2,0.55]
[1723418229678,2.73369,2560.7,2560.2,0.62811371]
[1723418230005,2.73346,2560.9,2560.2,0.62811371]
[1723418230006,2.73346,2560.9,2560.3,5.45292989]
[1723418230182,22.58916703,2561.1,2560.4,0.55]
[1723418230377,5.46699,2560.9,2560.4,0.55]
[1723418230714,19.85594703,2561.1,2560.4,0.55]
[1723418230916,19.85594703,2561.1,2559.9,5.03905]
[1723418230917,2.7339,2560.5,2559.9,5.03905]
[1723418231211,2.7339,2560.5,2559.9,2.3046]
[1723418231572,2.73401,2560.4,2559.9,2.3046]
[1723418231794,2.73406,2560.3,2559.9,2.3046]
[1723418231991,12.73735,2560.7,2560.0,2.7343]
[1723418232215,10.00363,2560.7,2560.0,2.81241521]
[1723418232393,10.00363,2560.7,2560.1,0.55]
[1723418232707,2.7338,2560.6,2560.1,0.55]
[1723418233009,10.00363,2560.7,2560.1,0.62811314]
[1723418233302,7.27,2560.7,2560.2,3.07038731]